Workbook

Sheet Začíname
B1: INFORMÁCIE O TEJTO ŠABLÓNE
B2: Pomocou tohto zošita rozpočtu podujatia môžete sledovať vzniknuté výdavky a získané príjmy v rámci podujatia.
B3: Vyplňte názov podujatia a zadajte podrobnosti do tabuliek v hárkoch Výdavky a Príjmy.
B4: Celkové výdavky a celkové príjmy sa vypočítajú automaticky.
B5: Súhrn zisku a straty a graf v hárku Súhrn sa aktualizujú automaticky.
B6: Poznámka:
B7: V každom hárku sú v stĺpci A uvedené ďalšie pokyny. Tento text je zámerne skrytý. Ak chcete text odstrániť, vyberte stĺpec A a potom stlačte kláves ODSTRÁNIŤ. Ak chcete text zobraziť, vyberte stĺpec A a potom zmeňte farbu písma.
B8: Ak chcete získať ďalšie informácie o tabuľkách, v tabuľke stlačte kláves SHIFT a potom kláves F10, vyberte možnosť TABUĽKA a potom vyberte položku ALTERNATÍVNY TEXT.

Sheet Výdavky
A1: Do príslušných tabuliek tohto hárka zadajte odhadované a skutočné výdavky pre jednotlivé kategórie. Celkové výdavky sa vypočítajú automaticky. V bunkách v tomto stĺpci na nachádzajú užitočné pokyny na používanie tohto hárka. Začnite stlačením šípky nadol.
A2: Prispôsobte nadpis tohto hárka a ostatných hárkov zadaním názov podujatia do bunky napravo. | B2: Rozpočet podujatia Názov podujatia
A3: V bunke G3 je označenie Výdavky. | G3: Výdavky
A4: V bunke G4 je označenie Odhadované a v bunke H4 je označenie Skutočné. | G4: Odhadované | H4: Skutočné
A5: V bunke napravo je označenie Celkové výdavky. Odhadované celkové výdavky v bunke G5 sa vypočítajú automaticky. Skutočné celkové výdavky a údajový pruh znázorňujúci skutočné celkové výdavky v bunke H5 sa aktualizujú automaticky. Ďalší pokyn sa nachádza v bunke A7. | B5: Celkové výdavky | G5: =SUM(C12,C20,C26,C33,G12,G20,G25) -> 1,145.00 EUR | H5: =SUM(D12,D20,D26,D33,H12,H20,H25) -> 395.00 EUR
A7: Do tabuľky začínajúcej v bunke napravo zadajte výdavky na priestory a do tabuľky začínajúcej v bunke F7 zadajte výdavky na občerstvenie. Ďalší pokyn je v bunke A14. | B7: Priestory | C7: Odhadované | D7: Skutočné | F7: Občerstvenie | G7: Odhadované | H7: Skutočné
B8: Poplatky za miestnosť a sálu | C8: 500.00 EUR | D8: 250.00 EUR | F8: Strava
B9: Personál priestorov | C9: 400.00 EUR | D9: 50.00 EUR | F9: Nápoje
B10: Vybavenie | F10: Obrusy
B11: Stoly a stoličky | F11: Personál a výpomoc
B12: Celková hodnota | C12: =SUBTOTAL(109,VýdavkyNaPriestory[Odhadované]) -> 900.00 EUR | D12: =SUBTOTAL(109,VýdavkyNaPriestory[Skutočné]) -> 300.00 EUR | F12: Celková hodnota | G12: =SUBTOTAL(109,VýdavkyNaObčerstvenie[Odhadované]) -> 0.00 EUR | H12: =SUBTOTAL(109,VýdavkyNaObčerstvenie[Skutočné]) -> 0.00 EUR
A14: Do tabuľky začínajúcej v bunke napravo zadajte výdavky na výzdoba a do tabuľky začínajúcej v bunke F14 zadajte výdavky na program. Ďalší pokyn je v bunke A22. | B14: Výzdoba | C14: Odhadované | D14: Skutočné | F14: Program | G14: Odhadované | H14: Skutočné
B15: Kvety | C15: 200.00 EUR | D15: 50.00 EUR | F15: Vystupujúci
B16: Sviečky | F16: Moderátori
B17: Osvetlenie | F17: Cestovné
B18: Balóny | F18: Hotel
B19: Papierové materiály | F19: Iné
B20: Celková hodnota | C20: =SUBTOTAL(109,VýdavkyNaVýzdoba[Odhadované]) -> 200.00 EUR | D20: =SUBTOTAL(109,VýdavkyNaVýzdoba[Skutočné]) -> 50.00 EUR | F20: Celková hodnota | G20: =SUBTOTAL(109,VýdavkyNaProgram[Odhadované]) -> 0.00 EUR | H20: =SUBTOTAL(109,VýdavkyNaProgram[Skutočné]) -> 0.00 EUR
A22: Do tabuľky začínajúcej v bunke napravo zadajte výdavky na propagácia a do tabuľky začínajúcej v bunke F22 zadajte výdavky na ceny. Ďalší pokyn je v bunke A28. | B22: Propagácia | C22: Odhadované | D22: Skutočné | F22: Ceny | G22: Odhadované | H22: Skutočné
B23: Grafické práce | C23: 45.00 EUR | D23: 45.00 EUR | F23: Stuhy, plakety a trofeje
B24: Fotokopírovanie a tlač | F24: Dary
B25: Poštovné | F25: Celková hodnota | G25: =SUBTOTAL(109,VýdavkyNaCeny[Odhadované]) -> 0.00 EUR | H25: =SUBTOTAL(109,VýdavkyNaCeny[Skutočné]) -> 0.00 EUR
B26: Celková hodnota | C26: =SUBTOTAL(109,VýdavkyNaPropagácia[Odhadované]) -> 45.00 EUR | D26: =SUBTOTAL(109,VýdavkyNaPropagácia[Skutočné]) -> 45.00 EUR
A28: Do tabuľky začínajúcej v bunke napravo zadajte rôzne výdavky. | B28: Rôzne | C28: Odhadované | D28: Skutočné
B29: Telefón
B30: Doprava
B31: Kancelárske potreby
B32: Faxové služby
B33: Celková hodnota | C33: =SUBTOTAL(109,RozličnéVýdavky[Odhadované]) -> 0.00 EUR | D33: =SUBTOTAL(109,RozličnéVýdavky[Skutočné]) -> 0.00 EUR

Sheet Príjmy
A1: Do príslušných tabuliek tohto hárka zadajte odhadované a skutočné príjmy pre jednotlivé kategórie. Celkové príjmy sa vypočítajú automaticky. V bunkách v tomto stĺpci na nachádzajú užitočné pokyny na používanie tohto hárka. Začnite stlačením šípky nadol.
A2: Názov podujatia v bunke napravo sa aktualizuje automaticky. | B2: =Výdavky!B2 -> Rozpočet podujatia Názov podujatia
A3: V bunke F3 je označenie Príjmy. | F3: Príjmy
A4: V bunke F4 je označenie Odhadované a v bunke G4 je označenie Skutočné. | F4: Odhadované | G4: Skutočné
A5: V bunke napravo je označenie Celkové príjmy. Odhadované celkové príjmy v bunke F5 sa vypočítajú automaticky. Skutočné celkové príjmy a údajový pruh znázorňujúci skutočné celkové príjmy v bunke G5 sa aktualizujú automaticky. | B5: Celkové príjmy | F5: =SUM(Vstupenky[[#Totals],[Odhadované spolu]],ReklamyVPrograme[[#Totals],[Odhadované spolu]],VystavovateliaAPredajcovia[[#Totals],[Odhadované spolu]],PredajPoložiek[[#Totals],[Odhadované spolu]]) -> 1,936.00 EUR | G5: =SUM(Vstupenky[[#Totals],[Skutočné spolu]],ReklamyVPrograme[[#Totals],[Skutočné spolu]],VystavovateliaAPredajcovia[[#Totals],[Skutočné spolu]],PredajPoložiek[[#Totals],[Skutočné spolu]]) -> 1,831.00 EUR
A6: V bunke napravo je označenie Vstupenky. | B6: Vstupenky
A7: Do tabuľky začínajúcej v bunke napravo zadajte odhadované a skutočné počet vstupeniek a ceny vstupeniek. Odhadované a skutočné príjmy zo vstupenky sa vypočítajú automaticky. Ďalší pokyn sa nachádza v bunke A12. | B7: Odhadované | C7: Skutočné | D7: Typ | E7: Cena | F7: Odhadované spolu | G7: Skutočné spolu
B8: 300 | C8: 278 | D8: Dospelí | E8: 5.00 EUR | F8: =B8*E8 -> 1,500.00 EUR | G8: =C8*E8 -> 1,390.00 EUR
B9: 197 | C9: 195 | D9: Deti | E9: 2.00 EUR | F9: =B9*E9 -> 394.00 EUR | G9: =C9*E9 -> 390.00 EUR
B10: 42 | C10: 51 | D10: Iné | E10: 1.00 EUR | F10: 42.00 EUR | G10: 51.00 EUR
F11: =SUBTOTAL(109,Vstupenky[Odhadované spolu]) -> 1,936.00 EUR | G11: =SUBTOTAL(109,Vstupenky[Skutočné spolu]) -> 1,831.00 EUR
A12: V bunke napravo je označenie Reklamy v programe. | B12: Reklamy v programe
A13: Do tabuľky začínajúcej v bunke napravo zadajte odhadované a skutočné počet reklamy v programe a ceny za reklamy. Odhadované a skutočné príjmy z reklamy sa vypočítajú automaticky. Ďalší pokyn sa nachádza v bunke A18. | B13: Odhadované | C13: Skutočné | D13: Typ | E13: Cena | F13: Odhadované spolu | G13: Skutočné spolu
D14: Titulné strany | F14: =B14*E14 -> 0.00 EUR | G14: =C14*E14 -> 0.00 EUR
D15: Polstrany | F15: =B15*E15 -> 0.00 EUR | G15: =C15*E15 -> 0.00 EUR
D16: Štvrťstrany | F16: 0.00 EUR | G16: 0.00 EUR
F17: =SUBTOTAL(109,ReklamyVPrograme[Odhadované spolu]) -> 0.00 EUR | G17: =SUBTOTAL(109,ReklamyVPrograme[Skutočné spolu]) -> 0.00 EUR
A18: V bunke napravo je označenie Vystavovatelia a predajcovia. | B18: Vystavovatelia a predajcovia
A19: Do tabuľky začínajúcej v bunke napravo zadajte odhadované a skutočné počet vystavovatelia a predajcovia a ceny za stánky. Odhadované a skutočné príjmy sa vypočítajú automaticky. Ďalší pokyn sa nachádza v bunke A24. | B19: Odhadované | C19: Skutočné | D19: Typ | E19: Cena | F19: Odhadované spolu | G19: Skutočné spolu
D20: Veľké stánky | F20: =B20*E20 -> 0.00 EUR | G20: =C20*E20 -> 0.00 EUR
D21: Stredne veľké stánky | F21: =B21*E21 -> 0.00 EUR | G21: =C21*E21 -> 0.00 EUR
D22: Malé stánky | F22: 0.00 EUR | G22: 0.00 EUR
F23: =SUBTOTAL(109,VystavovateliaAPredajcovia[Odhadované spolu]) -> 0.00 EUR | G23: =SUBTOTAL(109,VystavovateliaAPredajcovia[Skutočné spolu]) -> 0.00 EUR
A24: V bunke napravo je označenie Predaj položiek. | B24: Predaj položiek
A25: Do tabuľky začínajúcej v bunke napravo zadajte odhadované a skutočné počet predaj položiek a ceny za položky. Odhadované a skutočné príjmy sa vypočítajú automaticky. | B25: Odhadované | C25: Skutočné | D25: Typ | E25: Cena | F25: Odhadované spolu | G25: Skutočné spolu
D26: Položky | F26: =B26*E26 -> 0.00 EUR | G26: =C26*E26 -> 0.00 EUR
D27: Položky | F27: =B27*E27 -> 0.00 EUR | G27: =C27*E27 -> 0.00 EUR
D28: Položky | F28: 0.00 EUR | G28: 0.00 EUR
D29: Položky | F29: 0.00 EUR | G29: 0.00 EUR
F30: =SUBTOTAL(109,PredajPoložiek[Odhadované spolu]) -> 0.00 EUR | G30: =SUBTOTAL(109,PredajPoložiek[Skutočné spolu]) -> 0.00 EUR

Sheet Súhrn
A1: Súhrn zisku a straty a graf zobrazujúci celkové príjmy a výdavky v tomto hárku sa aktualizujú automaticky. V bunkách v tomto stĺpci na nachádzajú užitočné pokyny na používanie tohto hárka. Začnite stlačením šípky nadol.
A2: Názov podujatia v bunke napravo sa aktualizuje automaticky. | B2: =Výdavky!B2 -> Rozpočet podujatia Názov podujatia
A3: V bunke C3 je označenie Súhrn zisku a straty. Ďalší pokyn je v bunke A5. | C3: Súhrn zisku a straty
A5: Tabuľka celková hodnota začínajúca v bunke napravo sa aktualizuje automaticky. Ďalší pokyn je v bunke A9. | B5: Celková hodnota | C5: Odhadované | D5: Skutočné
B6: Celkové príjmy | C6: =Príjmy!F5 -> 1,936.00 EUR | D6: =Príjmy!G5 -> 1,831.00 EUR
B7: Celkové výdavky | C7: =Výdavky!G5 -> 1,145.00 EUR | D7: =Výdavky!H5 -> 395.00 EUR
B8: Celkový zisk (alebo strata) | C8: =C6-C7 -> 791.00 EUR | D8: =D6-D7 -> 1,436.00 EUR
A9: V bunke napravo je skupinový stĺpcový graf zobrazujúci porovnanie odhadované a skutočné celkových príjmy a celkových výdavky. | B9: V tejto bunke je skupinový stĺpcový graf zobrazujúci porovnanie odhadované a skutočné celkových príjmy a celkových výdavky.
